bitfinex/quotes_ETHUSD_20230403
["timestamp","ask_amount","ask_price","bid_price","bid_amount"]
[1680544473242,75.73486768,1799.2,1798.8,0.1]
[1680544473418,9.196,1799.0,1798.8,0.1]
[1680544473603,11.89896218,1798.9,1798.8,0.1]
[1680544473942,44.13494,1798.9,1798.8,0.1]
[1680544474638,44.5964974,1798.9,1798.8,0.1]
[1680544476308,45.1523874,1798.9,1798.8,0.1]
[1680544476640,44.3185574,1798.9,1798.8,0.1]
[1680544477383,44.5964974,1798.9,1798.8,0.1]
[1680544478040,35.4635574,1798.9,1798.8,0.1]
[1680544478904,41.3185574,1798.9,1798.8,0.1]
[1680544480844,41.5964974,1798.9,1798.8,0.1]
[1680544481657,41.3185574,1798.9,1798.8,0.1]
[1680544481859,45.75614714,1798.9,1798.8,0.1]
[1680544482024,49.07805932,1798.9,1798.8,0.1]
[1680544482223,52.07805932,1798.9,1798.8,0.1]
[1680544482952,57.32725932,1798.9,1798.8,0.1]
[1680544485335,57.35098138,1798.9,1798.8,0.1]
[1680544486315,54.5849592,1798.9,1798.8,0.1]
[1680544488359,54.0290692,1798.9,1798.8,0.1]
[1680544489244,43.7127574,1798.9,1798.8,0.1]
[1680544490320,49.5677574,1798.9,1798.8,0.1]
[1680544491340,0.4635574,1798.9,1798.8,0.1]
[1680544491557,0.4615574,1798.9,1798.8,0.37796]
[1680544491757,0.4615574,1798.9,1798.8,2.04573]
[1680544491961,0.4615574,1798.9,1798.8,1.93388]
[1680544492156,0.4615574,1798.9,1798.8,3.16988]
[1680544492520,21.5011,1799.5,1799.4,0.05]
[1680544492851,5.857,1799.5,1799.4,0.05]
[1680544493048,0.002,1799.5,1799.4,0.05]
[1680544493237,5.857,1799.6,1799.4,0.05]
[1680544493438,0.42655689,1799.5,1799.4,0.05]
[1680544496743,0.42655689,1799.5,1799.4,0.88361]
[1680544497372,3.02372206,1799.8,1799.4,0.88361]
[1680544498071,3.02372206,1799.8,1799.7,0.05]
[1680544498255,0.02372206,1799.8,1799.7,0.05]
[1680544498630,35.002,1799.9,1799.7,0.05]
[1680544498832,35.002,1799.9,1799.7,0.32782]
[1680544499032,0.002,1799.9,1799.7,1.55482]
[1680544499258,0.002,1800.0,1799.7,1.55482]
[1680544499459,15.8889,1800.1,1799.7,1.277]
[1680544499654,15.8889,1800.1,1799.7,1.50482]
[1680544500153,15.8889,1800.1,1800.0,0.05]
[1680544500361,17.47819,1800.1,1800.0,0.05]
[1680544501236,18.8889,1800.1,1800.0,0.05]
[1680544501953,8.857,1800.1,1800.0,0.05]
[1680544503782,9.15848206,1800.1,1800.0,0.05]
[1680544504572,9.56374768,1800.1,1800.0,0.00967344]
[1680544504786,9.56174768,1800.1,1800.0,0.00967344]
[1680544504982,11.57552345,1800.1,1800.0,0.00967344]
[1680544505480,11.57552345,1800.1,1799.5,0.28384]
[1680544505688,11.57552345,1800.1,1799.5,0.27784]
[1680544506044,14.89706563,1800.1,1799.4,1.238]
[1680544506244,0.27781,1799.8,1799.4,2.238]
[1680544508166,6.69442,1799.8,1799.4,2.132]
[1680544508382,6.69642,1799.8,1799.4,2.132]
[1680544508685,0.669642,1799.7,1799.4,2.132]
[1680544508889,0.947472,1799.7,1799.4,2.132]
[1680544509092,0.947472,1799.7,1799.2,10.8974]
[1680544509093,7.358112,1799.7,1799.2,0.008]
[1680544509390,23.778712,1799.7,1799.0,11.4081]
[1680544509556,6.13286,1799.5,1799.0,11.4101]
[1680544509759,6.69056,1799.5,1799.0,1.235]
[1680544509958,6.69056,1799.5,1799.0,1.227]
[1680544509959,0.27788,1799.3,1799.0,1.227]
[1680544511246,0.36361421,1799.3,1799.0,1.227]
[1680544512064,0.36361421,1799.3,1798.9,1.227]
[1680544512465,0.36410058,1799.2,1798.9,1.227]
[1680544514994,0.64200058,1799.2,1798.9,1.227]
[1680544515150,0.36410058,1799.2,1798.9,1.227]
[1680544516477,0.36410058,1799.2,1798.9,1.50493]
[1680544516677,0.36410058,1799.2,1798.9,0.27793]
[1680544517352,0.36410058,1799.2,1799.1,1.51191]
[1680544517557,0.36410058,1799.2,1799.1,2.06774]
[1680544518489,0.006,1799.6,1799.2,1.0]
[1680544518656,0.006,1799.6,1799.3,0.27788]
[1680544518851,0.008,1799.7,1799.3,0.27788]
[1680544519167,5.99631296,1799.8,1799.3,2.06765]
[1680544519168,0.008,1799.8,1799.3,2.06765]
[1680544519360,0.27777,1800.1,1799.3,11.59205]
[1680544519361,5.855,1800.0,1799.3,11.59205]
[1680544519697,5.863,1800.0,1799.3,11.59405]
[1680544519889,6.14078,1800.0,1799.3,11.59405]
[1680544520194,3.0,1799.9,1799.3,11.59405]
[1680544520403,3.006,1799.9,1799.3,11.59405]
[1680544520998,3.006,1799.9,1799.5,1.0]
[1680544520999,0.006,1799.9,1799.5,1.0]
[1680544521300,6.16450206,1800.0,1799.5,1.27784]
[1680544521479,11.70823445,1800.0,1799.5,1.0]
[1680544521680,5.855,1799.8,1799.3,1.002]
[1680544521876,0.30155206,1799.7,1799.3,1.0]
[1680544522675,6.71219206,1799.7,1799.3,1.0]
[1680544522858,0.67121921,1799.6,1799.3,1.0]
[1680544523059,0.94905921,1799.6,1799.3,1.0]
[1680544523293,0.67121921,1799.6,1799.3,1.0]
[1680544523503,0.94904921,1799.6,1799.3,1.0]
[1680544524968,0.94904921,1799.6,1799.1,9.4923]
[1680544525172,0.27787,1799.4,1799.1,9.4923]
[1680544525387,6.78347492,1799.5,1799.1,0.002]
[1680544525558,6.22976492,1799.5,1798.9,5.52194]
[1680544525762,0.67834749,1799.4,1798.9,5.52194]
[1680544526292,0.95621749,1799.4,1798.9,5.52194]
[1680544526700,0.95621749,1799.4,1798.9,5.244]
[1680544527502,0.95621749,1799.4,1798.9,2.244]
[1680544527503,7.36695749,1799.4,1798.9,2.244]
[1680544527673,6.59169575,1799.3,1798.9,1.006]
[1680544527877,6.59369575,1799.3,1798.8,0.95302545]
[1680544528204,6.59369575,1799.3,1798.9,1.0]
[1680544528386,0.73869575,1799.3,1798.9,1.27794]
[1680544528586,6.53334749,1799.4,1798.9,1.27794]
[1680544528767,6.53534749,1799.4,1798.9,1.27794]
[1680544529179,6.54134749,1799.4,1798.9,1.27794]
[1680544529991,6.53534749,1799.4,1798.9,1.27794]
[1680544530170,0.65353475,1799.3,1798.9,1.27794]
[1680544530771,0.65353475,1799.3,1798.9,1.0]
[1680544530971,0.65353475,1799.3,1798.8,0.37795]
[1680544531273,0.93141475,1799.3,1798.8,0.1]
[1680544532274,0.93141475,1799.3,1798.8,0.37796]
[1680544532479,0.35989568,1799.2,1798.8,0.37796]
[1680544532883,0.63779568,1799.2,1798.8,0.1]
[1680544533209,7.04859568,1799.2,1798.8,0.1]
[1680544533394,6.49479568,1799.2,1798.8,0.1]
[1680544533593,0.64947957,1799.1,1798.8,0.1]
[1680544534176,0.92738957,1799.1,1798.8,0.1]
[1680544534382,0.31201174,1799.0,1798.8,0.1]
[1680544537920,0.30821321,1799.0,1798.8,0.1]
[1680544539386,22.31836354,1799.2,1798.8,0.1]
[1680544539587,22.04046354,1799.2,1798.8,0.1]
[1680544540436,2.48999637,1799.1,1798.8,0.1]
[1680544540790,0.28595002,1799.1,1798.8,0.1]
[1680544541101,0.28595002,1799.1,1798.8,1.61496]
[1680544541501,3.006,1799.4,1798.8,1.337]
[1680544541704,0.2779,1799.3,1798.8,1.337]
[1680544541913,4.161265,1799.3,1798.8,1.337]
[1680544542223,4.161265,1799.3,1798.8,0.1]
[1680544542429,10.572035,1799.3,1798.8,0.1]
[1680544544390,0.88715206,1799.0,1798.8,0.1]
[1680544545541,0.28485027,1798.9,1798.8,0.1]
[1680544546437,0.56279027,1798.9,1798.8,0.1]
[1680544546956,0.28485027,1798.9,1798.8,0.1]
[1680544547636,5.4877,1799.2,1798.8,0.1]
[1680544548407,5.4817,1799.2,1798.8,0.1]
[1680544548589,5.7596,1799.2,1798.8,0.1]
[1680544548797,5.855,1799.0,1798.8,0.1]
[1680544549095,12.03762,1798.9,1798.8,0.1]
[1680544549317,28.720782,1798.9,1798.8,0.1]
[1680544549650,20.85145981,1798.9,1798.8,0.1]
[1680544549785,6.02774575,1798.9,1798.8,0.1]
[1680544550883,0.31274575,1798.9,1798.8,0.1]
[1680544551129,0.31074575,1798.9,1798.8,0.1]
[1680544552390,21.61212,1799.1,1798.8,0.1]
[1680544552807,15.4792,1799.1,1798.8,0.1]
[1680544553009,20.85788321,1799.1,1798.8,0.1]
[1680544553968,5.38068321,1799.1,1798.8,0.1]
[1680544554257,0.002,1799.1,1798.8,0.1]
[1680544554409,44.16462206,1799.2,1798.8,0.1]
[1680544555671,9.16462206,1799.2,1798.8,0.1]
[1680544556351,0.30362206,1799.2,1798.8,0.1]
[1680544556522,0.30162206,1799.2,1798.8,0.1]
[1680544557143,0.97366127,1799.2,1798.8,0.1]
[1680544557322,0.69576127,1799.2,1798.8,0.1]
[1680544557524,0.97366127,1799.2,1798.8,0.1]
[1680544558978,6.82866127,1799.2,1798.8,0.1]
[1680544559122,5.855,1799.0,1798.8,0.1]
[1680544559476,9.62112,1798.9,1798.8,0.1]
[1680544559781,22.62392,1798.9,1798.8,0.1]
[1680544560330,25.38994218,1798.9,1798.8,0.1]
[1680544560526,25.38994218,1798.9,1798.6,0.1]
[1680544560527,28.73294218,1798.9,1798.6,0.1]
[1680544560831,7.092,1798.7,1798.6,0.1]
[1680544561031,10.32563222,1798.7,1798.6,0.1]
[1680544561586,13.32563222,1798.7,1798.6,0.1]
[1680544562297,12.08863222,1798.7,1798.6,0.1]
[1680544563032,17.36703222,1798.7,1798.6,0.1]
[1680544564506,17.71443256,1798.7,1798.6,0.1]
[1680544566378,10.19157256,1798.7,1798.6,0.1]
[1680544566580,10.74752256,1798.7,1798.6,0.1]
[1680544568958,7.74752256,1798.7,1798.6,0.1]
[1680544569772,7.19157256,1798.7,1798.6,0.1]
[1680544571492,17.71443256,1798.7,1798.3,0.1]
[1680544571793,0.71915726,1798.6,1798.3,0.1]
[1680544571956,14.48280034,1798.7,1798.3,0.1]
[1680544572292,14.76078034,1798.7,1798.3,0.1]
[1680544572486,6.48238034,1798.7,1798.3,0.1]
[1680544572860,6.20440034,1798.7,1798.3,0.1]
[1680544573062,0.34940034,1798.7,1798.3,2.16611]
[1680544573262,0.34740034,1798.7,1798.5,1.236]
[1680544573465,0.34740034,1798.7,1798.6,4.71196218]
[1680544573704,0.34740034,1798.7,1798.6,3.59999218]
[1680544573872,0.34740034,1798.7,1798.6,4.83199218]
[1680544574069,0.34740034,1798.7,1798.6,4.82999218]
[1680544574612,16.01668136,1799.3,1798.6,4.83599218]
[1680544574948,0.002,1799.3,1798.9,1.237]
[1680544575213,16.45312364,1799.6,1799.1,0.27791]
[1680544575420,16.73896364,1799.6,1799.0,3.59977218]
[1680544575599,0.37442689,1799.2,1799.0,3.59977218]
[1680544576190,0.37442689,1799.2,1799.0,3.04393218]
[1680544576535,0.27788,1799.3,1799.0,0.006]
[1680544576741,0.27788,1799.3,1798.8,5.04735]
[1680544576742,0.83365,1799.3,1798.8,4.7774]
[1680544576884,0.83365,1799.3,1798.9,2.76602218]
[1680544577244,0.94073706,1799.3,1798.8,7.54342218]
[1680544577685,0.30160206,1799.3,1798.8,2.77402218]
[1680544578042,0.002,1799.5,1799.0,0.83375]
[1680544578182,0.002,1799.6,1799.0,3.59977218]
[1680544578383,6.13882,1799.7,1799.0,3.59977218]
[1680544578384,5.863,1799.7,1799.0,3.59977218]
[1680544578614,5.88672206,1799.7,1799.0,3.59977218]
[1680544578821,5.8689205,1799.7,1799.0,3.60577218]
[1680544579757,0.37690996,1799.6,1799.0,3.60577218]
[1680544582162,0.37690996,1799.6,1799.0,4.83977218]
[1680544582379,0.37690996,1799.6,1799.0,0.83975]
[1680544582922,6.4979384,1799.6,1799.0,0.83975]
[1680544583158,6.4999384,1799.6,1799.0,0.28391]
[1680544584350,41.4999384,1799.6,1799.0,0.28391]
[1680544584551,2.76602218,1799.5,1798.9,0.55589]
[1680544584788,2.76602218,1799.5,1798.6,3.64249317]
[1680544584789,5.84319844,1798.9,1798.6,0.002]
[1680544585071,5.84319844,1798.9,1798.3,0.1]
[1680544585072,7.78892844,1798.8,1798.3,0.1]
[1680544585277,6.64581334,1798.7,1798.3,0.1]
[1680544585421,0.03172206,1798.7,1798.3,0.93411]
[1680544585619,0.02972206,1798.7,1798.3,0.1]
[1680544586379,0.006,1798.7,1798.4,5.855]
[1680544586574,0.27792,1799.1,1798.4,5.855]
[1680544586575,0.28392,1799.1,1798.5,1.514]
[1680544586883,0.28392,1799.1,1798.5,1.236]
[1680544587024,0.83975,1799.1,1798.5,1.236]
[1680544587231,0.006,1799.1,1798.5,2.07001]
[1680544587541,0.28391,1799.1,1798.5,2.07001]
[1680544587758,0.006,1799.1,1798.5,8.369]
[1680544588056,0.28391,1799.2,1798.8,1.237]
[1680544589155,0.006,1799.2,1798.8,1.51496]
[1680544589355,0.006,1799.2,1798.8,1.237]
[1680544589514,0.2839,1799.2,1798.8,1.237]
[1680544589959,0.006,1799.2,1798.8,1.237]
[1680544590699,0.2839,1799.2,1798.8,1.237]
[1680544591398,0.02372206,1799.1,1798.6,15.9038]
[1680544591697,0.83379,1799.0,1798.6,0.002]
[1680544591860,0.83379,1799.0,1798.4,15.6658]
[1680544592060,0.02372206,1798.9,1798.4,2.76802218]
[1680544592282,0.27796,1798.8,1798.4,2.76602218]
[1680544593097,0.83388,1798.8,1798.3,1.339]
[1680544593274,0.27799,1798.6,1798.3,1.337]
[1680544593477,0.83397,1798.6,1798.3,1.337]
[1680544593692,0.83397,1798.6,1798.3,0.1]
[1680544594096,0.27799,1798.6,1798.3,0.1]
[1680544594312,0.36435621,1798.6,1798.3,0.1]
[1680544594484,0.31813441,1798.5,1798.3,0.1]
[1680544595312,0.31813441,1798.5,1798.4,2.76602218]
[1680544595619,0.31813441,1798.5,1798.4,2.99602218]
[1680544596307,0.31813441,1798.5,1798.3,1.336]
[1680544596487,0.278,1798.6,1798.3,4.10002218]
[1680544597625,0.278,1798.6,1798.3,1.334]
[1680544597781,0.92034721,1798.6,1798.3,0.1]
[1680544597983,0.08636721,1798.6,1798.3,0.1]
[1680544598316,0.30770206,1798.7,1798.3,0.1]
[1680544598687,0.30170206,1798.7,1798.3,0.1]
[1680544598878,0.30770206,1798.7,1798.3,0.1]
[1680544599077,0.30170206,1798.7,1798.3,0.1]
[1680544599274,0.02372206,1798.7,1798.3,0.1]
[1680544599713,0.02372206,1798.7,1798.3,4.38105218]
[1680544599913,0.02972206,1798.7,1798.3,4.38105218]
[1680544600114,0.02972206,1798.7,1798.4,2.76602218]
[1680544600289,0.006,1798.7,1798.4,2.76602218]
[1680544601102,0.006,1798.7,1798.4,3.04404218]
[1680544601413,0.006,1798.7,1798.4,2.76602218]
[1680544601621,0.006,1798.8,1798.4,2.76602218]
[1680544601774,0.28396,1798.8,1798.4,2.76602218]
[1680544604011,0.006,1798.8,1798.4,2.76602218]
[1680544604332,0.006,1798.8,1798.4,3.04404218]
[1680544604528,0.006,1798.8,1798.3,1.339]
[1680544604529,0.006,1798.8,1798.3,0.102]
[1680544604825,0.02372206,1798.7,1798.3,0.1]
[1680544605183,0.30169206,1798.7,1798.3,0.1]
[1680544605914,0.85764206,1798.7,1798.3,0.1]
[1680544606423,0.86364206,1798.7,1798.3,0.1]
[1680544606984,0.30769206,1798.7,1798.3,0.1]
[1680544607184,1.22555799,1798.7,1798.3,0.1]
[1680544607385,1.78150799,1798.7,1798.3,0.1]
[1680544607823,7.18140799,1798.7,1798.3,0.1]
[1680544607989,7.18340799,1798.7,1798.3,0.1]
[1680544608703,7.18340799,1798.7,1798.3,0.05]
[1680544608906,0.7183408,1798.6,1798.3,0.05]
[1680544609428,0.03172206,1798.7,1798.3,2.81602218]
[1680544609630,0.36804273,1798.5,1798.3,2.81602218]
[1680544609927,0.36804273,1798.5,1798.3,3.09405218]
[1680544610239,0.36804273,1798.5,1798.3,3.65013218]
[1680544610399,0.36804273,1798.5,1798.4,2.76602218]
[1680544610606,0.006,1798.8,1798.4,3.04404218]
[1680544611101,0.28396,1798.8,1798.4,2.76602218]
[1680544611635,0.83988,1798.8,1798.3,0.052]
[1680544611819,0.83388,1798.8,1798.3,2.81602218]
[1680544612025,4.018251,1798.8,1798.3,2.81602218]
[1680544612833,0.006,1798.8,1798.3,3.09405218]
[1680544613207,0.006,1798.8,1798.4,2.76602218]
[1680544613420,0.28396,1798.8,1798.4,2.76602218]
[1680544613935,0.006,1798.8,1798.4,2.76602218]
[1680544614833,0.28396,1798.8,1798.4,2.76602218]
[1680544615029,0.006,1798.8,1798.4,2.76602218]
[1680544615261,29.86172206,1798.9,1798.4,9.45508218]
[1680544615398,0.03172206,1798.9,1798.4,9.45708218]
[1680544615601,0.02972206,1798.9,1798.4,9.45708218]
[1680544616044,0.02372206,1798.9,1798.4,9.45708218]
[1680544616335,0.008,1799.0,1798.7,5.855]
[1680544616554,0.006,1799.1,1798.8,2.76602218]
[1680544617053,0.2839,1799.2,1798.8,2.76602218]
[1680544617439,0.006,1799.2,1798.8,2.76602218]
[1680544618334,0.2839,1799.2,1798.8,2.76602218]
[1680544619119,0.006,1799.2,1798.8,4.27797218]
[1680544619313,0.006,1799.2,1799.0,1.237]
[1680544619765,0.006,1799.2,1799.0,0.27792]
[1680544620067,0.006,1799.2,1798.9,0.27794]
[1680544620230,0.006,1799.3,1798.9,3.04396218]
[1680544621455,0.006,1799.3,1799.0,2.76602218]
[1680544621857,1.45536345,1799.7,1799.3,1.0]
[1680544622030,0.004,1799.8,1799.6,2.467]
[1680544622366,0.11000001,1800.0,1799.7,4.23302218]
[1680544622547,0.11000001,1800.0,1799.7,4.23902218]
[1680544622720,0.11000001,1800.0,1799.7,2.77202218]
[1680544623068,0.11000001,1800.0,1799.7,2.76602218]
[1680544624186,0.11000001,1800.0,1799.6,0.006]
[1680544624319,0.11000001,1800.0,1799.5,0.30256835]
[1680544624320,0.11000001,1800.0,1799.5,0.02271835]
[1680544624683,0.35982357,1799.9,1799.6,0.27783]
[1680544625224,0.35982357,1799.9,1799.6,0.8335]
[1680544625977,0.35982357,1799.9,1799.5,0.30655835]
[1680544626272,0.35982357,1799.9,1799.5,0.30055835]
[1680544627807,0.35982357,1799.9,1799.5,0.85625835]
[1680544628124,0.35982357,1799.9,1799.5,0.02271835]
[1680544628356,0.43458393,1799.9,1799.5,0.30056835]
[1680544628725,0.43458393,1799.9,1799.5,0.85626835]
[1680544629824,0.35982357,1799.9,1799.6,2.76602218]
[1680544630024,0.35982357,1799.9,1799.7,0.83346]
[1680544630226,0.35982357,1799.9,1799.7,3.59948218]
[1680544630456,0.35982357,1799.9,1799.7,3.60548218]
[1680544630652,0.35982357,1799.9,1799.7,3.59948218]
[1680544630853,0.35982357,1799.9,1799.7,3.60548218]
[1680544631238,0.35982357,1799.9,1799.7,5.76748218]
[1680544631457,0.35982357,1799.9,1799.8,2.99602218]
[1680544631667,0.35982357,1799.9,1799.8,12.96366218]
[1680544631976,0.35982357,1799.9,1799.8,12.96566218]
[1680544632177,0.35982357,1799.9,1799.8,16.96566218]
[1680544632380,0.35982357,1799.9,1799.8,17.49566218]
[1680544632551,0.11000001,1800.0,1799.8,17.49566218]
[1680544632746,0.11000001,1800.0,1799.9,14.61639218]
[1680544632946,0.11000001,1800.0,1799.9,15.38439218]
[1680544633681,0.11000001,1800.0,1799.9,14.82881218]
[1680544633991,0.11000001,1800.0,1799.9,3.00402218]
[1680544634143,0.11000001,1800.0,1799.9,3.00202218]
[1680544634756,0.11000001,1800.0,1799.9,0.236]
[1680544634986,0.11000001,1800.0,1799.9,0.006]
[1680544635142,0.11000001,1800.0,1799.8,0.23]
[1680544635143,0.11000001,1800.0,1799.8,0.236]
[1680544635338,0.11000001,1800.0,1799.8,3.00202218]
[1680544635556,0.42814497,1800.0,1799.8,3.00202218]
[1680544637882,0.42814497,1800.0,1799.8,2.77202218]
[1680544639095,0.70591497,1800.0,1799.8,2.77202218]
[1680544639473,0.42814497,1800.0,1799.8,2.77202218]
[1680544639993,0.70592497,1800.0,1799.8,0.006]
[1680544640153,0.70592497,1800.0,1799.5,5.87771835]
[1680544640154,0.70592497,1800.0,1799.6,0.006]
[1680544640495,1.26147497,1800.0,1799.6,0.236]
[1680544640696,1.26147497,1800.0,1799.6,0.006]
[1680544640898,1.26147497,1800.0,1799.5,0.006]
[1680544641096,1.26147497,1800.0,1799.5,2.77202218]
[1680544641260,1.50973147,1800.0,1799.5,2.77202218]
[1680544641797,1.50973147,1800.0,1799.5,0.006]
[1680544642097,9.11663147,1800.0,1799.4,0.006]
[1680544642263,9.11863147,1800.0,1799.4,2.76602218]
[1680544642457,9.23252082,1800.0,1799.4,2.77202218]
[1680544642696,0.92325208,1799.9,1799.4,2.77202218]
[1680544642996,0.27781,1799.8,1799.4,2.77202218]
[1680544643218,5.98893432,1800.0,1799.5,2.99602218]
[1680544643381,6.26670432,1800.0,1799.5,3.27986218]
[1680544643579,6.26670432,1800.0,1799.5,3.00202218]
[1680544643580,6.15281497,1800.0,1799.5,3.00202218]
[1680544643877,7.39079847,1800.0,1799.5,3.00202218]
[1680544645502,7.39079847,1800.0,1799.5,2.99602218]
[1680544646289,7.39079847,1800.0,1799.5,3.00202218]
[1680544646708,7.39079847,1800.0,1799.5,2.99602218]
[1680544648185,6.70836497,1800.0,1799.5,3.00202218]
[1680544648386,6.15281497,1800.0,1799.5,3.00202218]
[1680544648619,6.70836497,1800.0,1799.5,3.00202218]
[1680544649491,5.87504497,1800.0,1799.5,3.27987218]
[1680544649897,6.15281497,1800.0,1799.5,3.00202218]
[1680544650099,5.87504497,1800.0,1799.5,3.27987218]
[1680544650398,5.87504497,1800.0,1799.5,3.83557218]
[1680544650569,0.42685866,1800.0,1799.5,9.71329053]
[1680544650710,0.42485866,1800.0,1799.5,9.71529053]
[1680544650903,0.42485866,1800.0,1799.6,0.53]
[1680544651105,0.42485866,1800.0,1799.7,3.82948218]
[1680544651415,0.42485866,1800.0,1799.7,3.60548218]
[1680544651642,0.42485866,1800.0,1799.7,3.04984218]
[1680544651965,0.42485866,1800.0,1799.7,2.77202218]
[1680544654465,0.537814,1800.0,1799.7,3.04983218]
[1680544654638,0.537814,1800.0,1799.7,2.77202218]
[1680544655638,0.815584,1800.0,1799.7,2.77202218]
[1680544656747,0.815584,1800.0,1799.7,0.006]
[1680544656921,1.371134,1800.0,1799.5,0.006]
[1680544657126,1.371134,1800.0,1799.5,2.77202218]
[1680544658750,0.815584,1800.0,1799.5,2.77202218]
[1680544659652,0.815584,1800.0,1799.6,3.27385218]
[1680544659653,0.537814,1800.0,1799.6,3.27385218]
[1680544659833,0.537814,1800.0,1799.6,3.27985218]
[1680544660734,0.537814,1800.0,1799.6,3.83552218]
[1680544661131,0.537814,1800.0,1799.6,3.27985218]
[1680544661561,0.537814,1800.0,1799.6,3.83552218]
[1680544663933,0.537814,1800.0,1799.6,9.71323927]
[1680544664156,0.537814,1800.0,1799.6,10.24523927]
[1680544664355,0.537814,1800.0,1799.6,9.71523927]
[1680544664547,0.537814,1800.0,1799.6,10.24523927]
[1680544672895,0.537814,1800.0,1799.8,5.855]
[1680544673045,0.537814,1800.0,1799.9,3.82939218]
[1680544673253,0.537814,1800.0,1799.9,3.83539218]
[1680544675200,0.537814,1800.0,1799.9,0.006]
[1680544675433,0.537814,1800.0,1799.6,0.006]
[1680544675434,1.371134,1800.0,1799.6,0.006]
[1680544675566,1.4359154,1800.0,1799.6,0.006]
[1680544675764,11.0830654,1800.0,1799.6,0.006]
[1680544676117,11.0850654,1800.0,1799.6,0.006]
[1680544676450,11.08293272,1800.0,1799.5,0.004]
[1680544676691,11.08293272,1800.0,1799.5,0.23]
[1680544677745,11.08293272,1800.0,1799.6,2.76602218]
[1680544677950,0.53768132,1800.0,1799.6,8.62102218]
[1680544678201,0.53568132,1800.0,1799.7,0.23]
[1680544678422,0.53568132,1800.0,1799.8,2.76602218]
[1680544678557,0.87882945,1800.0,1799.6,0.004]
[1680544678882,2.162,1799.9,1799.3,0.008]
[1680544679086,0.2162,1799.8,1799.4,2.76602218]
[1680544679284,16.2821,1799.9,1799.4,3.04387218]
[1680544679497,0.43282645,1799.8,1799.4,3.04387218]
[1680544679647,0.43282645,1799.8,1799.4,8.89887218]
[1680544680014,0.43282645,1799.8,1799.4,8.90687218]
[1680544680314,0.43282645,1799.8,1799.5,0.23]
[1680544680531,5.6736,1799.9,1799.6,2.76602218]
[1680544680747,0.002,1799.9,1799.6,2.76602218]
[1680544680901,0.10458102,1800.0,1799.6,2.76602218]
[1680544681104,0.10458102,1800.0,1799.6,3.04385218]
[1680544681485,0.10458102,1800.0,1799.6,2.76602218]
[1680544681795,0.10458102,1800.0,1799.6,3.04385218]
[1680544682226,0.10458102,1800.0,1799.6,2.76602218]
[1680544682393,0.10458102,1800.0,1799.6,8.89885218]
[1680544682738,0.10458102,1800.0,1799.6,8.90085218]
[1680544683527,0.10458102,1800.0,1799.6,8.62302218]
[1680544683936,0.38235102,1800.0,1799.6,2.76802218]
[1680544684285,1.47058849,1800.0,1799.5,0.008]
[1680544684438,0.42066053,1799.9,1799.6,2.76602218]
[1680544684638,0.42066053,1799.9,1799.7,0.27782]
[1680544684969,0.42066053,1799.9,1799.7,2.76602218]
[1680544685128,0.42066053,1799.9,1799.7,3.04384218]
[1680544685330,0.42066053,1799.9,1799.6,0.56367]
[1680544685331,0.42066053,1799.9,1799.8,2.76602218]
[1680544686744,0.42066053,1799.9,1799.8,3.04382218]
[1680544687482,0.42066053,1799.9,1799.8,2.76602218]
[1680544687780,0.42066053,1799.9,1799.8,3.04382218]
[1680544688200,0.42066053,1799.9,1799.8,2.76602218]
[1680544688507,0.42066053,1799.9,1799.8,8.89882218]
[1680544688667,0.42066053,1799.9,1799.8,9.69243218]
[1680544689613,0.42066053,1799.9,1799.8,0.002]
[1680544689794,0.69845053,1799.9,1799.4,0.58107545]
[1680544690005,0.42066053,1799.9,1799.5,2.76602218]
[1680544690311,0.42066053,1799.9,1799.5,2.77202218]
[1680544690512,0.69845053,1799.9,1799.5,8.62102218]
[1680544690679,0.69845053,1799.9,1799.5,8.62902218]
[1680544691071,0.42066053,1799.9,1799.5,8.62902218]
[1680544691313,0.69845053,1799.9,1799.5,8.62902218]
[1680544692780,0.69846053,1799.9,1799.5,8.62902218]
[1680544692976,0.42066053,1799.9,1799.5,8.62902218]
[1680544693176,0.69845053,1799.9,1799.5,8.62902218]
[1680544693711,2.03085498,1799.9,1799.5,2.77402218]
[1680544693913,2.03085498,1799.9,1799.5,2.76602218]
[1680544694260,2.03085498,1799.9,1799.4,0.58307545]
[1680544694461,1.235,1799.8,1799.3,0.57507545]
[1680544694796,1.9448,1799.7,1799.3,2.76602218]
[1680544694967,0.19448,1799.6,1799.3,2.77202218]
[1680544695165,0.47232,1799.6,1799.3,2.76602218]
[1680544695366,0.19448,1799.6,1799.3,2.76602218]
[1680544695606,0.83349,1799.7,1799.3,2.76602218]
[1680544695911,0.27783,1799.7,1799.3,2.76602218]
[1680544696773,0.27783,1799.7,1799.2,0.008]
[1680544696979,1.237,1799.8,1799.3,2.76602218]
[1680544697289,1.68169728,1799.8,1799.3,3.04390218]
[1680544698304,1.00838417,1799.9,1799.3,9.47739304]
[1680544698599,0.42066053,1799.9,1799.4,0.80507545]
[1680544698808,0.42066053,1799.9,1799.5,9.45455218]
[1680544699007,0.42066053,1799.9,1799.5,9.45655218]
[1680544699192,0.42066053,1799.9,1799.6,0.23]
[1680544699394,0.42066053,1799.9,1799.7,3.04384218]
[1680544699591,0.42066053,1799.9,1799.7,2.76602218]
[1680544699903,0.42066053,1799.9,1799.7,3.59948218]
[1680544700103,0.42066053,1799.9,1799.7,9.45448218]
[1680544700409,0.42066053,1799.9,1799.7,9.45648218]
[1680544702081,0.42066053,1799.9,1799.7,8.90084218]
[1680544703027,0.42066053,1799.9,1799.7,11.10177218]
[1680544703180,0.42066053,1799.9,1799.8,0.25271455]
[1680544703398,0.42066053,1799.9,1799.8,9.70714673]
[1680544703621,0.10458102,1800.0,1799.8,9.71514673]
[1680544703933,0.10458102,1800.0,1799.9,2.76602218]
[1680544704077,0.10458102,1800.0,1799.9,3.59939218]
[1680544704715,0.43286096,1800.0,1799.9,3.04381218]